fUSD/lending_fUSD_20260407
["ID","MTS","AMOUNT","RATE_DAILY","PERIOD"]
[419991038,1775590235717,-500.0,0.00013699,2]
[419991039,1775590235726,-500.0,0.00013699,2]
[419991040,1775590235736,-500.0,0.00013699,2]
[419991041,1775590235751,-500.27198937,0.00013699,2]
[419991042,1775590235762,-500.0,0.00013699,2]
[419991043,1775590235772,-502.96988739,0.00013699,2]
[419991044,1775590235782,-500.0,0.00013699,2]
[419991045,1775590235792,-500.0,0.00013699,2]
[419991046,1775590235801,-500.0,0.00013699,2]
[419991047,1775590235810,-500.0,0.00013699,2]
[419991048,1775590235820,-501.19620744,0.00013699,2]
[419991049,1775590235829,-500.0,0.00013699,2]
[419991050,1775590235840,-500.0,0.00013699,2]
[419991051,1775590235849,-500.0,0.00013699,2]
[419991052,1775590235859,-500.0,0.00013699,2]
[419991053,1775590235868,-500.0,0.00013699,2]
[419991054,1775590235878,-500.0,0.00013699,2]
[419991055,1775590235888,-501.02973938,0.00013699,2]
[419991056,1775590235897,-500.0,0.00013699,2]
[419991057,1775590235907,-500.0,0.00013699,2]
[419991058,1775590235916,-500.0,0.00013699,2]
[419991059,1775590235926,-164.39680661,0.00013699,2]
[419991060,1775590235936,-500.0,0.00013699,2]
[419991061,1775590235946,-290.6020449,0.00013699,2]
[419991062,1775590235956,-503.7652055,0.00013699,2]
[419991063,1775590235966,-288.2071777,0.00013699,2]
[419991064,1775590235975,-474.57359568,0.00013699,2]
[419991065,1775590235985,-337.90453598,0.00013699,2]
[419991066,1775590235995,-180.21187415,0.00013699,2]
[419991067,1775590236004,-500.0,0.00013699,2]
[419991068,1775590236014,-163.84182296,0.00013699,2]
[419991069,1775590236024,-244.01107124,0.00013699,2]
[419991070,1775590236034,-500.0,0.00013699,2]
[419991071,1775590236043,-500.0,0.00013699,2]
[419991072,1775590236053,-500.0,0.00013699,2]
[419991073,1775590236064,-500.0,0.00013699,2]
[419991074,1775590236074,-1117.02022933,0.00013699,5]
[419991075,1775590236084,-500.0,0.00013699,2]
[419991076,1775590236095,-604.16,0.00013699,2]
[419991077,1775590236106,-500.0,0.00013699,2]
[419991078,1775590236116,-113032.92,0.000137,2]
[419991079,1775590236126,-470.93,0.000137,2]
[419991080,1775590236136,-470.93,0.000137,2]
[419991081,1775590236146,-470.93,0.000137,2]
[419991082,1775590236155,-470.93,0.000137,2]
[419991083,1775590236165,-470.93,0.000137,2]
[419991084,1775590236175,-166.66,0.00013836,2]
[419991085,1775590236186,-6655.0045477,0.00013842,2]
[419991086,1775590236197,-11900.0,0.000139,5]
[419991087,1775590236206,-2000.0,0.00013916,2]
[419991088,1775590236216,-2000.0,0.00013916,2]
[419991089,1775590236225,-2000.0,0.00013916,2]
[419991090,1775590236236,-2000.0,0.00013916,2]
[419991091,1775590236252,-2000.0,0.00013916,2]
[419991092,1775590236262,-2000.0,0.00013916,2]
[419991093,1775590236272,-150.0,0.00013973,2]
[419991094,1775590236283,-150.0,0.00013973,2]
[419991095,1775590236293,-150.0,0.00013973,2]
[419991096,1775590236303,-166.66,0.00013973,2]
[419991097,1775590236313,-5000.0,0.00014017,2]
[419991098,1775590236323,-166.66,0.00014038,2]
[419991099,1775590236332,-3306.91,0.00014108,2]
[419991100,1775590236342,-166.66,0.0001411,2]
[419991101,1775590236352,-160.0,0.00014112,7]
[419991102,1775590236361,-460.842238,0.00014112,7]
[419991103,1775590236371,-761.684477,0.00014112,7]
[419991104,1775590236382,-160.0,0.00014112,7]
[419991105,1775590236393,-372.250666,0.00014112,7]
[419991106,1775590236403,-584.501333,0.00014112,7]
[419991107,1775590236413,-160.0,0.00014112,7]
[419991108,1775590236424,-160.0,0.00014112,2]
[419991109,1775590236435,-1409.13799,0.00014112,7]
[419991110,1775590236445,-330.348993,0.00014112,2]
[419991111,1775590236455,-2658.27598,0.00014112,7]
[419991112,1775590236466,-500.697986,0.00014112,2]
[419991113,1775590236477,-506.0,0.00014129,2]
[419991114,1775590236487,-160.0,0.00014175,7]
[419991115,1775590236496,-1088.656425,0.00014175,7]
[419991116,1775590236506,-2017.312851,0.00014175,7]
[419991117,1775590236515,-160.0,0.00014175,2]
[419991118,1775590236525,-993.068226,0.00014175,2]
[419991119,1775590236535,-1826.136452,0.00014175,2]
[419991120,1775590236545,-166.66,0.00014247,2]
[419991121,1775590236554,-150.0,0.00014247,2]
[419991122,1775590236565,-150.0,0.00014247,2]
[419991123,1775590236575,-150.0,0.00014247,2]
[419991124,1775590236586,-500.0,0.00014247,2]
[419991125,1775590236596,-500.0,0.00014247,2]
[419991126,1775590236607,-500.0,0.00014247,2]
[419991127,1775590236616,-500.0,0.00014247,2]
[419991128,1775590236626,-500.0,0.00014247,2]
[419991129,1775590236637,-1001.62175176,0.00014247,2]
[419991130,1775590236646,-1000.0,0.00014247,2]
[419991131,1775590236657,-500.0,0.00014247,2]
[419991132,1775590236668,-1000.0,0.00014247,2]
[419991133,1775590236678,-500.0,0.00014247,2]
[419991134,1775590236689,-500.0,0.00014247,2]
[419991135,1775590236699,-500.0,0.00014247,2]
[419991136,1775590236709,-500.0,0.00014247,2]
[419991137,1775590236719,-1000.0,0.00014247,2]
[419991138,1775590236729,-500.0,0.00014247,2]
[419991139,1775590236739,-500.78094914,0.00014247,2]
[419991140,1775590236749,-500.0,0.00014247,2]
[419991141,1775590236759,-6655.0045477,0.00014254,2]
[419991142,1775590236770,-3469.0,0.00014365,5]
[419991143,1775590236780,-166.66,0.00014384,2]
[419991144,1775590236791,-2812.0,0.000144,2]
[419991145,1775590236801,-150.0,0.000144,2]
[419991146,1775590236812,-150.0,0.000144,2]
[419991147,1775590236823,-150.0,0.000144,2]
[419991148,1775590236833,-150.0,0.000144,2]
[419991149,1775590236843,-150.0,0.000144,2]
[419991150,1775590236854,-150.0,0.000144,2]
[419991151,1775590236864,-150.0,0.000144,2]
[419991152,1775590236874,-150.0,0.000144,2]
[419991153,1775590236885,-150.0,0.000144,2]
[419991154,1775590236895,-150.0,0.000144,2]
[419991155,1775590236906,-150.0,0.000144,2]
[419991156,1775590236915,-150.0,0.000144,2]
[419991157,1775590236925,-150.0,0.000144,2]
[419991158,1775590236935,-150.0,0.000144,2]
[419991159,1775590236945,-1500.0,0.00014464,2]
[419991160,1775590236955,-1500.0,0.00014464,2]
[419991161,1775590236965,-2500.0,0.00014464,2]
[419991162,1775590236975,-1013.22099072,0.00014464,2]
[419991163,1775590236985,-1500.0,0.00014464,2]
[419991164,1775590236995,-508.06532933,0.00014464,2]
[419991165,1775590237006,-2000.0,0.00014503,2]
[419991166,1775590237016,-433.0,0.00014554,2]
[419991167,1775590237026,-150.0,0.00014578,2]
[419991168,1775590237036,-150.0,0.00014578,2]
[419991169,1775590237047,-2191.0,0.00014579,2]
[419991170,1775590237056,-150.0,0.00014629,2]
[419991171,1775590237067,-6655.0045477,0.00014665,2]
[419991172,1775590237077,-208.0,0.0001467,4]
[419991173,1775590237087,-165.512,0.000147,2]
[419991174,1775590237096,-150.0,0.0001472,2]
[419991175,1775590237107,-150.0,0.0001472,2]
[419991176,1775590237116,-150.0,0.00014756,2]
[419991177,1775590237126,-150.0,0.00014756,2]
[419991178,1775590237136,-1500.0,0.00014795,2]
[419991179,1775590237146,-1002.54510633,0.00014795,2]
[419991180,1775590237155,-500.70648413,0.00014795,2]
[419991181,1775590237165,-150.0,0.000148,2]
[419991182,1775590237175,-150.0,0.000148,2]
[419991183,1775590237187,-150.0,0.000148,2]
[419991184,1775590237197,-36219.0,0.00014804,2]
[419991185,1775590237207,-171.4,0.00014813,2]
[419991186,1775590237218,-628.421234,0.00014818,7]
[419991187,1775590237228,-507.614545,0.00014818,7]
[419991188,1775590237237,-1921.551804,0.00014818,7]
[419991189,1775590237247,-450.475899,0.00014818,2]
[419991190,1775590237257,-611.15,0.00014853,2]
[419991191,1775590237267,-3284.3,0.00014853,2]
[419991192,1775590237277,-6242.75,0.00014853,2]
[419991193,1775590237286,-745.79,0.00014853,2]
[419991194,1775590237296,-150.0,0.00014857,2]
[419991195,1775590237306,-439.86705155,0.00014882,2]
[419991196,1775590237316,-1484.531489,0.00014884,7]
[419991197,1775590237326,-1354.183945,0.00014884,2]
[419991198,1775590237336,-150.0,0.00014933,2]
[419991199,1775590237347,-150.0,0.00014933,2]
[419991200,1775590237356,-532.0,0.00015,2]
[419991201,1775590237366,-937.0,0.00015,2]
[419991202,1775590237376,-300.0,0.00015,2]
[419991203,1775590237386,-3000.0,0.00015012,2]
[419991204,1775590237396,-150.0,0.0001504,2]
[419991205,1775590237406,-150.0,0.0001504,2]
[419991206,1775590237416,-302.95,0.0001505,2]
[419991207,1775590237426,-210.28,0.00015068,2]
[419991208,1775590237436,-6655.0045477,0.00015077,2]
[419991209,1775590237446,-150.0,0.00015086,2]
[419991210,1775590237456,-150.0,0.00015111,2]
[419991211,1775590237466,-150.0,0.00015111,2]
[419991212,1775590237477,-506.0,0.00015158,3]
[419991213,1775590237487,-1235.18214925,0.00015199,2]
[419991214,1775590237498,-8260.13072239,0.00015199,2]
[419991215,1775590237508,-200.0,0.00015199,2]
[419991216,1775590237519,-500.0,0.00015199,2]
[419991217,1775590237528,-623.58710448,0.00015199,2]
[419991218,1775590237537,-151.0,0.00015199,2]
[419991219,1775590237547,-743.50770149,0.00015199,2]
[419991220,1775590237558,-174.61919141,0.00015199,2]
[419991221,1775590237568,-599.60298507,0.00015199,2]
[419991222,1775590237578,-411.57624402,0.00015199,2]
[419991223,1775590237588,-150.0,0.000152,2]
[419991224,1775590237598,-150.0,0.000152,2]
[419991225,1775590237608,-150.0,0.000152,2]
[419991226,1775590237618,-150.0,0.000152,2]
[419991227,1775590237628,-391.39016199,0.00015204,2]
[419991228,1775590237638,-922.22,0.00015205,2]
[419991229,1775590237647,-500.0,0.00015205,2]
[419991230,1775590237656,-500.0,0.00015205,2]
[419991231,1775590237666,-506.3,0.00015205,2]
[419991232,1775590237676,-500.0,0.00015205,2]
[419991233,1775590237685,-10000.0,0.00015205,2]
[419991234,1775590237696,-155.26329613,0.00015232,2]
[419991235,1775590237707,-4638.35391231,0.00015254,2]
[419991236,1775590237717,-500.0,0.00015254,2]
[419991237,1775590237727,-151.0,0.00015254,2]
[419991238,1775590237737,-150.0,0.00015289,2]
[419991239,1775590237747,-150.0,0.00015289,2]
[419991240,1775590237757,-500.0,0.00015309,2]
[419991241,1775590237767,-151.0,0.00015309,2]
[419991242,1775590237777,-150.0,0.00015314,2]
[419991243,1775590237787,-2000.0,0.00015342,2]
[419991244,1775590237797,-150.0,0.0001536,2]
[419991245,1775590237807,-150.0,0.0001536,2]
[419991246,1775590237817,-500.0,0.00015364,2]
[419991247,1775590237826,-151.0,0.00015364,2]
[419991248,1775590237836,-235.53,0.00015393,2]
[419991249,1775590237846,-500.0,0.00015419,2]
[419991250,1775590237856,-151.0,0.00015419,2]
[419991251,1775590237866,-150.0,0.00015467,2]
[419991252,1775590237877,-150.0,0.00015467,2]
[419991253,1775590237887,-500.0,0.00015474,2]
[419991254,1775590237899,-151.0,0.00015474,2]
[419991255,1775590237911,-6655.0045477,0.00015488,2]
[419991256,1775590237922,-150.0,0.00015543,2]
[419991257,1775590237934,-985.75,0.00015546,2]
[419991258,1775590237945,-1500.0,0.0001556,2]
[419991259,1775590237955,-350.0,0.00015585,2]
[419991260,1775590237965,-150.0,0.000156,2]
[419991261,1775590237974,-150.0,0.000156,2]
[419991262,1775590237984,-150.0,0.000156,2]
[419991263,1775590237994,-15900.0,0.000156,5]
[419991264,1775590238004,-150.0,0.00015644,2]
[419991265,1775590238013,-150.0,0.00015644,2]
[419991266,1775590238023,-1005.71422633,0.00015654,2]
[419991267,1775590238033,-1074.59043719,0.00015654,2]
[419991268,1775590238043,-1062.81794199,0.00015654,2]
[419991269,1775590238053,-1017.12210465,0.00015654,2]
[419991270,1775590238063,-1003.29564812,0.00015654,2]
[419991271,1775590238073,-1010.73198558,0.00015654,2]
[419991272,1775590238083,-1323.81837893,0.00015654,2]
[419991273,1775590238092,-150.0,0.0001568,2]
[419991274,1775590238102,-150.0,0.0001568,2]
[419991275,1775590238112,-196.26,0.00015688,2]
[419991276,1775590238123,-500.0,0.00015699,2]
[419991277,1775590238135,-547.84,0.00015699,2]
[419991278,1775590238145,-500.0,0.00015699,2]
[419991279,1775590238155,-500.0,0.00015699,2]
[419991280,1775590238166,-500.0,0.00015699,2]
[419991281,1775590238176,-604.16,0.00015699,2]
[419991282,1775590238188,-302.95,0.00015699,2]
[419991283,1775590238199,-19800.0,0.000157,5]
[419991284,1775590238210,-250.0,0.00015724,2]
[419991285,1775590238221,-1000.0,0.00015727,2]
[419991286,1775590238232,-1000.0,0.00015728,2]
[419991287,1775590238241,-1000.0,0.00015739,2]
[419991288,1775590238253,-248.36398266,0.0001574,2]
[419991289,1775590238263,-1000.0,0.00015746,2]
[419991290,1775590238272,-1000.0,0.00015746,2]
[419991291,1775590238282,-1280.88388878,0.00015747,2]
[419991292,1775590238292,-200.0,0.00015747,2]
[419991293,1775590238302,-854.56470337,0.00015747,2]
[419991294,1775590238313,-181.08010149,0.00015747,2]
[419991296,1775590238323,-194.83183622,0.00015747,2]
[419991297,1775590238334,-1000.0,0.00015748,2]
[419991298,1775590238345,-1000.0,0.00015753,2]
[419991299,1775590238356,-1000.0,0.00015761,2]
[419991300,1775590238367,-150.0,0.00015771,2]
[419991301,1775590238377,-150.0,0.00015774,2]
[419991302,1775590238388,-150.0,0.0001579,2]
[419991303,1775590238399,-1000.0,0.00015792,2]
[419991304,1775590238410,-1000.0,0.00015794,2]
[419991305,1775590238421,-3900.0,0.000158,5]
[419991306,1775590238431,-500.0,0.00015808,2]
[419991307,1775590238441,-500.0,0.00015808,2]
[419991308,1775590238452,-396.18600857,0.00015808,2]
[419991309,1775590238462,-1000.0,0.00015812,2]
[419991310,1775590238473,-985.75,0.0001582,2]
[419991311,1775590238484,-785.92,0.0001582,2]
[419991312,1775590238936,-150.0,0.00015822,2]
[419991313,1775590238946,-150.0,0.00015822,2]
[419991314,1775590238957,-1000.0,0.00015825,2]
[419991315,1775590238967,-150.0,0.00015831,2]
[419991316,1775590238977,-169.1901,0.0001584,2]
[419991317,1775590238988,-10000.0,0.0001584,2]
[419991318,1775590238998,-1000.0,0.0001584,2]
[419991319,1775590239008,-1000.0,0.0001584,2]
[419991320,1775590239018,-1000.0,0.0001584,2]
[419991321,1775590239027,-1000.0,0.0001584,2]
[419991322,1775590239037,-1000.0,0.0001584,2]
[419991323,1775590239046,-1000.0,0.0001584,2]
[419991324,1775590239056,-354.0,0.00015843,2]
[419991325,1775590239066,-169.1901,0.0001585,2]
[419991326,1775590239075,-1000.0,0.00015854,2]
[419991327,1775590239085,-169.1901,0.0001586,2]
[419991328,1775590239094,-1000.0,0.00015866,2]
[419991329,1775590239103,-169.1901,0.0001587,2]
[419991330,1775590239113,-150.0,0.00015877,2]
[419991331,1775590239122,-150.0,0.00015878,2]
[419991332,1775590239132,-169.1901,0.0001588,2]
[419991333,1775590239143,-169.1901,0.0001589,2]
[419991334,1775590239153,-2000.0,0.0001589,2]
[419991335,1775590239162,-1500.0,0.0001589,2]
[419991336,1775590239171,-150.0,0.00015898,2]
[419991337,1775590239181,-150.0,0.000159,2]
[419991338,1775590239190,-8659.8002,0.000159,2]
[419991339,1775590239200,-150.0,0.000159,2]
[419991340,1775590239210,-150.0,0.000159,2]
[419991341,1775590239218,-150.0,0.000159,2]
[419991342,1775590239228,-150.0,0.000159,2]
[419991343,1775590239237,-297.617756,0.000159,2]
[419991344,1775590239246,-151.0,0.000159,2]
[419991345,1775590239256,-297.617756,0.000159,2]
[419991346,1775590239265,-151.0,0.000159,2]
[419991347,1775590239275,-297.617756,0.000159,2]
[419991348,1775590239285,-151.0,0.000159,2]
[419991349,1775590239294,-297.617756,0.000159,2]
[419991350,1775590239304,-241.657081,0.000159,2]
[419991351,1775590239313,-151.0,0.000159,2]
[419991352,1775590239323,-241.657081,0.000159,2]
[419991353,1775590239333,-151.0,0.000159,2]
[419991354,1775590239343,-241.657081,0.000159,2]
[419991355,1775590239352,-151.0,0.000159,2]
[419991356,1775590239361,-241.657081,0.000159,2]
[419991357,1775590239370,-151.0,0.000159,2]
[419991358,1775590239379,-151.0,0.000159,2]
[419991359,1775590239389,-151.0,0.000159,2]
[419991360,1775590239398,-151.0,0.000159,2]
[419991361,1775590239407,-151.0,0.000159,2]
[419991362,1775590239417,-164.753452,0.000159,2]
[419991363,1775590239426,-151.0,0.000159,2]
[419991364,1775590239436,-151.0,0.000159,2]
[419991365,1775590239445,-151.0,0.000159,2]
[419991366,1775590239455,-151.0,0.000159,2]
[419991367,1775590239465,-177.4914121,0.000159,2]
[419991368,1775590239474,-151.0,0.000159,2]
[419991369,1775590239484,-151.0,0.000159,2]
[419991370,1775590239494,-365.227851,0.000159,2]
[419991371,1775590239503,-151.0,0.000159,2]
[419991372,1775590239513,-151.0,0.000159,2]
[419991373,1775590239522,-365.227851,0.000159,2]
[419991374,1775590239532,-247.986101,0.000159,2]
[419991375,1775590239542,-151.0,0.000159,2]
[419991376,1775590239552,-151.0,0.000159,2]
[419991377,1775590239561,-365.227851,0.000159,2]
[419991378,1775590239571,-151.0,0.000159,2]
[419991379,1775590239580,-365.227851,0.000159,2]
[419991380,1775590239590,-151.0,0.000159,2]
[419991381,1775590239599,-3900.0,0.000159,5]
[419991382,1775590239609,-151.0,0.000159,2]
[419991383,1775590239618,-151.0,0.000159,2]
[419991384,1775590239627,-154.715671,0.000159,2]
[419991385,1775590239638,-154.715671,0.000159,2]
[419991386,1775590239647,-151.0,0.000159,2]
[419991387,1775590239656,-154.715671,0.000159,2]
[419991388,1775590239665,-151.0,0.000159,2]
[419991389,1775590239675,-154.715671,0.000159,2]
[419991390,1775590239683,-151.0,0.000159,2]
[419991391,1775590239693,-156.439616,0.000159,2]
[419991392,1775590239702,-151.0,0.000159,2]
[419991393,1775590239712,-151.0,0.000159,2]
[419991394,1775590239722,-151.0,0.000159,2]
[419991395,1775590239732,-151.0,0.000159,2]
[419991396,1775590239741,-151.0,0.000159,2]
[419991397,1775590239750,-151.0,0.000159,2]
[419991398,1775590239759,-151.0,0.000159,2]
[419991399,1775590239769,-151.0,0.000159,2]
[419991400,1775590239778,-191.136328,0.000159,2]
[419991401,1775590239787,-151.0,0.000159,2]
[419991402,1775590239796,-151.0,0.000159,2]
[419991403,1775590239804,-191.136328,0.000159,2]
[419991404,1775590239814,-191.136328,0.000159,2]
[419991405,1775590239823,-151.0,0.000159,2]
[419991406,1775590239833,-191.136328,0.000159,2]
[419991407,1775590239843,-155.645165,0.000159,2]
[419991408,1775590239853,-151.0,0.000159,2]
[419991409,1775590239862,-154.435832,0.000159,2]
[419991410,1775590239871,-154.435832,0.000159,2]
[419991411,1775590239882,-151.0,0.000159,2]
[419991412,1775590239891,-154.435832,0.000159,2]
[419991413,1775590239903,-151.0,0.000159,2]
[419991414,1775590239912,-260.414519,0.000159,2]
[419991415,1775590239923,-154.435832,0.000159,2]
[419991416,1775590239932,-151.0,0.000159,2]
[419991417,1775590239942,-260.414519,0.000159,2]
[419991418,1775590239952,-234.050145,0.000159,2]
[419991419,1775590239962,-151.0,0.000159,2]
[419991420,1775590239971,-260.414519,0.000159,2]
[419991421,1775590239981,-151.0,0.000159,2]
[419991422,1775590239991,-234.050145,0.000159,2]
[419991423,1775590240000,-260.414519,0.000159,2]
[419991424,1775590240010,-1052.319122,0.000159,2]
[419991425,1775590240020,-420.632847,0.000159,2]
[419991426,1775590240031,-234.050145,0.000159,2]
[419991427,1775590240040,-151.0,0.000159,2]
[419991428,1775590240051,-1052.319122,0.000159,2]
[419991429,1775590240060,-420.632847,0.000159,2]
[419991430,1775590240070,-178.332865,0.000159,2]
[419991431,1775590240080,-151.0,0.000159,2]
[419991432,1775590240089,-1052.319122,0.000159,2]
[419991433,1775590240099,-420.632847,0.000159,2]
[419991434,1775590240109,-151.0,0.000159,2]
[419991435,1775590240119,-178.332865,0.000159,2]
[419991436,1775590240129,-509.165765,0.000159,2]
[419991437,1775590240140,-151.0,0.000159,2]
[419991438,1775590240150,-234.050145,0.000159,2]
[419991439,1775590240160,-171.867964,0.000159,2]
[419991440,1775590240169,-1052.319122,0.000159,2]
[419991441,1775590240179,-420.632847,0.000159,2]
[419991442,1775590240189,-925.539557,0.000159,2]
[419991443,1775590240199,-178.332865,0.000159,2]
[419991444,1775590240209,-509.165765,0.000159,2]
[419991445,1775590240219,-925.539557,0.000159,2]
[419991446,1775590240228,-178.332865,0.000159,2]
[419991447,1775590240238,-1853.25106067,0.000159,2]
[419991448,1775590240248,-509.165765,0.000159,2]
[419991449,1775590240257,-151.0,0.000159,2]
[419991450,1775590240268,-159.006193,0.000159,2]
[419991451,1775590240279,-509.165765,0.000159,2]
[419991452,1775590240289,-925.539557,0.000159,2]
[419991453,1775590240299,-151.0,0.000159,2]
[419991454,1775590240310,-151.0,0.000159,2]
[419991455,1775590240321,-151.0,0.000159,2]
[419991456,1775590240332,-925.539557,0.000159,2]
[419991457,1775590240343,-151.0,0.000159,2]
[419991458,1775590240353,-151.0,0.000159,2]
[419991459,1775590240363,-211.769893,0.000159,2]
[419991460,1775590240373,-169.233499,0.000159,2]
[419991461,1775590240383,-233.57251441,0.000159,2]
[419991462,1775590240392,-6655.0045477,0.000159,2]
[419991463,1775590240403,-151.0,0.000159,2]
[419991464,1775590240412,-332.93807702,0.000159,2]
[419991465,1775590240422,-3498.0,0.000159,5]
[419991466,1775590240432,-2000.0,0.000159,2]
[419991467,1775590240442,-1000.0,0.00015901,2]
[419991468,1775590240452,-150.0,0.00015908,2]
[419991469,1775590240461,-152.0,0.00015908,2]
[419991470,1775590240471,-1000.0,0.00015918,2]
[419991472,1775590240482,-150.0,0.00015919,2]
[419991473,1775590240491,-150.0,0.00015928,2]
[419991474,1775590240501,-250.0,0.00015929,2]
[419991475,1775590240512,-1000.0,0.00015931,2]
[419991476,1775590240522,-171.4,0.00015953,2]
[419991477,1775590240532,-150.0,0.00015955,2]
[419991478,1775590240542,-5000.0,0.0001596,2]
[419991479,1775590240552,-1000.0,0.00015971,2]
[419991480,1775590240562,-1000.0,0.00015971,2]
[419991481,1775590240573,-151.0,0.00015971,2]
[419991482,1775590240583,-151.0,0.00015971,2]
[419991483,1775590240593,-151.0,0.00015971,2]
[419991484,1775590240602,-151.0,0.00015971,2]
[419991485,1775590240612,-151.0,0.00015971,2]
[419991486,1775590240621,-1069.372802,0.00015971,2]
[419991487,1775590240631,-1069.372802,0.00015971,2]
[419991488,1775590240641,-151.0,0.00015971,2]
[419991489,1775590240651,-151.0,0.00015971,2]
[419991490,1775590240660,-1069.372802,0.00015971,2]
[419991491,1775590240670,-1069.372802,0.00015971,2]
[419991492,1775590240680,-444.271642,0.00015971,2]
[419991493,1775590240689,-444.271642,0.00015971,2]
[419991494,1775590240699,-151.0,0.00015971,2]
[419991495,1775590240708,-444.271642,0.00015971,2]
[419991496,1775590240717,-444.271642,0.00015971,2]
[419991497,1775590240727,-151.0,0.00015971,2]
[419991498,1775590240737,-3269.0,0.00015973,2]
[419991499,1775590240746,-1000.0,0.00015973,2]
[419991500,1775590240755,-352.222846,0.00015973,2]
[419991501,1775590240765,-352.222846,0.00015973,2]
[419991502,1775590240775,-352.222846,0.00015973,2]
[419991503,1775590240786,-352.222846,0.00015973,2]
[419991504,1775590240796,-151.0,0.00015973,2]
[419991505,1775590240806,-1000.0,0.00015982,2]
[419991506,1775590240815,-1000.0,0.00015982,2]
[419991507,1775590240825,-1000.0,0.00015985,2]
[419991508,1775590240835,-91256.2192512,0.00015991,2]
[419991509,1775590240845,-3513.5038267,0.00015991,2]
[419991510,1775590240855,-151.0,0.00015991,2]
[419991511,1775590240864,-151.0,0.00015991,2]
[419991512,1775590240874,-151.0,0.00015991,2]
[419991513,1775590240885,-151.0,0.00015991,2]
[419991514,1775590240895,-151.0,0.00015991,2]
[419991515,1775590240907,-151.0,0.00015991,2]
[419991516,1775590240916,-151.0,0.00015991,2]
[419991517,1775590240926,-151.0,0.00015991,2]
[419991518,1775590240936,-151.0,0.00015991,2]
[419991519,1775590240946,-151.0,0.00015991,2]
[419991520,1775590240956,-151.0,0.00015991,2]
[419991521,1775590240966,-151.0,0.00015991,2]
[419991522,1775590240975,-151.0,0.00015991,2]
[419991523,1775590240984,-2765.8515522,0.00015991,2]
[419991524,1775590240993,-218.132708,0.00015991,2]
[419991525,1775590241003,-151.0,0.00015991,2]
[419991526,1775590241011,-151.0,0.00015991,2]
[419991527,1775590241021,-151.0,0.00015991,2]
[419991528,1775590241029,-151.0,0.00015991,2]
[419991529,1775590241038,-151.0,0.00015991,2]
[419991530,1775590241049,-151.0,0.00015991,2]
[419991531,1775590241058,-151.0,0.00015991,2]
[419991532,1775590241068,-3440.0257102,0.00015991,2]
[419991533,1775590241078,-22732.5496654,0.00015991,2]
[419991534,1775590241087,-150.0,0.00015992,2]
[419991535,1775590241097,-1000.0,0.00015993,2]
[419991536,1775590241110,-12786.1158435,0.00015997,2]
[419991537,1775590241120,-6016.1412367,0.00015997,2]
[419991538,1775590241130,-151.0,0.00015997,2]
[419991539,1775590241141,-11108.8487891,0.00015997,2]